bitfinex/quotes_BTCUSD_20250814
["timestamp","ask_amount","ask_price","bid_price","bid_amount"]
[1755190349848,0.18016207,117930.0,117920.0,0.2781961]
[1755190350045,0.18016207,117930.0,117920.0,0.2811561]
[1755190350252,0.18016207,117930.0,117920.0,0.2781961]
[1755190350470,0.18016207,117930.0,117920.0,0.2761161]
[1755190351011,0.0002,117930.0,117920.0,0.3443258]
[1755190351219,0.0002,117930.0,117920.0,0.2991561]
[1755190351463,0.16979213,117930.0,117920.0,0.3011561]
[1755190351621,0.0002,117930.0,117920.0,0.3011561]
[1755190351826,0.17153241,117930.0,117920.0,0.4451561]
[1755190352031,0.16979213,117930.0,117920.0,0.4451561]
[1755190352225,0.16979213,117930.0,117920.0,0.33864651]
[1755190352440,0.0002,117930.0,117920.0,1.14884959]
[1755190352896,0.0002,117930.0,117920.0,1.16300806]
[1755190353194,0.00011729,117930.0,117920.0,1.17809772]
[1755190353664,0.00011729,117930.0,117920.0,1.32974084]
[1755190354516,0.0002,117940.0,117930.0,0.50959213]
[1755190354831,0.0002,117940.0,117930.0,1.33751704]
[1755190355332,0.0002,117940.0,117930.0,1.48916016]
[1755190355886,0.0002,117940.0,117930.0,1.49016016]
[1755190356099,7.297e-05,117940.0,117930.0,1.49016016]
[1755190356297,7.297e-05,117940.0,117930.0,1.48916016]
[1755190356770,7.297e-05,117940.0,117930.0,1.49016016]
[1755190356984,0.01174314,117950.0,117930.0,1.33851704]
[1755190357112,0.01174314,117950.0,117940.0,0.46504603]
[1755190357318,0.01174314,117950.0,117940.0,0.47038603]
[1755190358011,0.01174314,117950.0,117940.0,0.48534371]
[1755190358418,0.01274314,117950.0,117940.0,0.48534371]
[1755190358619,0.01274314,117950.0,117940.0,1.14302094]
[1755190358954,0.01274314,117950.0,117940.0,0.48534371]
[1755190359305,0.01274314,117950.0,117940.0,1.14302094]
[1755190359455,0.01274314,117950.0,117940.0,1.12806326]
[1755190359636,0.01274314,117950.0,117940.0,0.31823775]
[1755190359835,0.01274314,117950.0,117940.0,0.97591498]
[1755190360036,0.01274314,117950.0,117940.0,1.05863823]
[1755190360292,0.01274314,117950.0,117940.0,1.14112266]
[1755190360493,0.01274314,117950.0,117940.0,1.48112266]
[1755190361225,0.01274314,117950.0,117940.0,1.63327094]
[1755190361992,0.01274314,117950.0,117940.0,1.63284896]
[1755190362834,0.01274314,117950.0,117940.0,1.65065096]
[1755190363641,0.01274314,117950.0,117940.0,1.66809998]
[1755190364244,1e-08,117950.0,117940.0,1.69309998]
[1755190364452,1e-08,117950.0,117940.0,1.73110944]
[1755190364696,0.0002,117960.0,117950.0,0.52701239]
[1755190364853,0.0003476,117960.0,117950.0,1.37301676]
[1755190365184,0.0003476,117960.0,117950.0,1.5069636]
[1755190365394,0.0003476,117960.0,117950.0,1.48951458]
[1755190366370,0.0003476,117960.0,117950.0,1.49151458]
[1755190366576,0.0003476,117960.0,117950.0,1.63435458]
[1755190366773,0.15573071,117990.0,117980.0,0.16952025]
[1755190366997,0.00507191,117990.0,117980.0,0.31236025]
[1755190367166,0.1745778,117990.0,117980.0,0.36054846]
[1755190367363,0.1745778,117990.0,117980.0,0.31236025]
[1755190368003,0.00507191,117990.0,117980.0,0.31236025]
[1755190368408,0.1745778,117990.0,117980.0,0.31236025]
[1755190369239,0.1745778,117990.0,117980.0,0.14284]
[1755190369658,0.1755778,117990.0,117980.0,0.14284]
[1755190369777,0.1755778,117990.0,117980.0,0.17407619]
[1755190369983,0.1755778,117990.0,117980.0,0.31236025]
[1755190370883,0.00347191,117990.0,117980.0,0.31236025]
[1755190371087,0.00149191,117990.0,117980.0,0.97537748]
[1755190371326,0.00149191,117990.0,117980.0,0.31770025]
[1755190371545,0.00354191,117990.0,117980.0,0.31447025]
[1755190372156,0.00354191,117990.0,117980.0,0.31236025]
[1755190372378,0.17725525,118000.0,117990.0,0.16950589]
[1755190372526,0.17740274,118000.0,117990.0,0.16950589]
[1755190372935,0.17740274,118000.0,117980.0,0.31236025]
[1755190373132,0.17883274,118000.0,117990.0,0.16950589]
[1755190373337,0.17828274,118000.0,117990.0,0.16950589]
[1755190373541,0.00879105,118000.0,117990.0,0.16950589]
[1755190373742,0.18102285,118000.0,117990.0,0.16950589]
[1755190373951,0.17928257,118000.0,117990.0,0.16950589]
[1755190374353,0.18028257,118000.0,117990.0,0.16950589]
[1755190374737,0.16950589,117990.0,117980.0,0.31555025]
[1755190374983,0.17038589,117990.0,117980.0,0.31232025]
[1755190375214,0.17038589,117990.0,117980.0,0.38793992]
[1755190375984,0.17038589,117990.0,117980.0,0.07561967]
[1755190376201,0.17038589,117990.0,117980.0,0.38793992]
[1755190376605,0.17038589,117990.0,117980.0,0.21841967]
[1755190377127,0.17038589,117990.0,117980.0,0.31232025]
[1755190377494,0.00088,117990.0,117980.0,0.31232025]
[1755190377711,0.00262028,117990.0,117980.0,0.31232025]
[1755190377918,0.00262028,117990.0,117980.0,0.37761073]
[1755190379248,0.00262028,117990.0,117980.0,0.31766025]
[1755190379655,0.17124617,117990.0,117980.0,0.31766025]
[1755190379853,0.16950589,117990.0,117980.0,0.31766025]
[1755190380256,0.17038589,117990.0,117980.0,0.16952025]
[1755190380466,0.17038589,117990.0,117980.0,0.31232025]
[1755190380703,0.00088,117990.0,117980.0,0.31232025]
[1755190380903,0.17212617,117990.0,117980.0,0.31232025]
[1755190381051,0.17038589,117990.0,117980.0,0.31232025]
[1755190381536,0.17038589,117990.0,117980.0,0.41827619]
[1755190381712,0.12038589,117990.0,117980.0,0.47822667]
[1755190381882,0.12212617,117990.0,117980.0,0.31232025]
[1755190382077,0.12212617,117990.0,117980.0,0.31555025]
[1755190382291,0.12212617,117990.0,117980.0,0.42361619]
[1755190382489,0.12212617,117990.0,117980.0,0.10595594]
[1755190382689,0.20484942,117990.0,117980.0,0.10595594]
[1755190382993,0.16952025,117980.0,117970.0,0.41824939]
[1755190383205,0.20310914,117990.0,117970.0,0.42358939]
[1755190383383,0.20310914,117990.0,117980.0,0.16952025]
[1755190384059,0.20510914,117990.0,117970.0,0.42147939]
[1755190384260,0.20510914,117990.0,117970.0,0.48142997]
[1755190384494,0.22195793,117990.0,117980.0,0.17697925]
[1755190384706,0.22195793,117990.0,117980.0,0.17486025]
[1755190384905,0.22195793,117990.0,117970.0,0.42147939]
[1755190385584,0.22095793,117990.0,117970.0,0.42147939]
[1755190386085,0.16952025,117980.0,117970.0,0.42147939]
[1755190386383,0.22195793,117990.0,117970.0,0.42358939]
[1755190386830,0.16952025,117980.0,117970.0,0.42358939]
[1755190387313,0.16952025,117980.0,117970.0,0.31763345]
[1755190387515,0.001,117980.0,117970.0,0.31763345]
[1755190387923,0.002,117980.0,117970.0,0.31763345]
[1755190388139,0.01784879,117980.0,117970.0,0.31763345]
[1755190388346,0.01784879,117980.0,117970.0,0.42401178]
[1755190388558,0.21622942,117980.0,117970.0,0.25236833]
[1755190388738,0.21448914,117980.0,117970.0,0.24913833]
[1755190388960,0.18636904,117980.0,117970.0,0.10637833]
[1755190389120,0.18636904,117980.0,117970.0,0.27591295]
[1755190389324,0.18636904,117980.0,117970.0,0.28099295]
[1755190389729,0.21411896,117980.0,117970.0,0.28099295]
[1755190390129,0.21411896,117980.0,117970.0,0.00508]
[1755190390354,1.09727944,117980.0,117970.0,0.1064702]
[1755190390553,1.16211846,117980.0,117970.0,0.1064702]
[1755190390753,0.16954899,117960.0,117950.0,0.1064702]
[1755190390928,0.39503224,117960.0,117950.0,0.1064702]
[1755190391128,0.41088103,117960.0,117950.0,0.1064702]
[1755190391428,0.39503224,117960.0,117950.0,0.1064702]
[1755190391599,0.16956337,117950.0,117940.0,0.1726874]
[1755190391799,0.16957775,117940.0,117930.0,0.31235034]
[1755190392022,0.15567156,117940.0,117930.0,0.33220664]
[1755190392222,0.15567156,117940.0,117930.0,0.30005821]
[1755190392429,0.15567156,117940.0,117930.0,0.46965034]
[1755190393728,0.15567156,117940.0,117930.0,0.15729821]
[1755190394077,0.38289509,117940.0,117930.0,0.15221821]
[1755190394278,0.38115481,117940.0,117930.0,0.15221821]
[1755190394614,0.38115481,117940.0,117930.0,0.00049191]
[1755190395027,0.23839481,117940.0,117930.0,0.17516404]
[1755190396062,0.16956337,117950.0,117940.0,0.16957775]
[1755190396262,0.39500662,117950.0,117940.0,0.17465775]
[1755190397149,0.17802643,117960.0,117950.0,0.16956337]
[1755190397353,0.14272,117960.0,117950.0,0.28090479]
[1755190397525,0.16954899,117960.0,117950.0,0.42362479]
[1755190397726,0.33659045,117970.0,117960.0,0.16954899]
[1755190398004,0.4193137,117970.0,117960.0,0.00508]
[1755190398210,0.2765937,117970.0,117960.0,0.27581041]
[1755190398398,0.4193137,117970.0,117960.0,0.28089041]
[1755190398594,0.40346738,117970.0,117960.0,0.28089041]
[1755190398928,0.16953462,117970.0,117960.0,0.28089041]
[1755190399249,0.16953462,117970.0,117960.0,0.17462899]
[1755190399688,0.17253462,117970.0,117960.0,0.17462899]
[1755190400114,0.16953462,117970.0,117960.0,0.17462899]
[1755190400368,0.17053462,117970.0,117960.0,0.00508]
[1755190400497,0.17453462,117970.0,117960.0,0.17462899]
[1755190401359,0.17653462,117970.0,117960.0,0.28086829]
[1755190402926,0.14972,117970.0,117960.0,0.28086829]
[1755190403652,0.14972,117970.0,117960.0,0.17462899]
[1755190405198,0.31925462,117970.0,117960.0,0.27579414]
[1755190406019,0.14972,117970.0,117960.0,0.27579414]
[1755190406225,0.14972,117970.0,117960.0,0.28087414]
[1755190406996,0.31925462,117970.0,117960.0,0.28087414]
[1755190407433,0.14972,117970.0,117960.0,0.17462899]
[1755190407608,0.31925462,117970.0,117960.0,0.17462899]
[1755190407809,0.14972,117970.0,117960.0,0.17462899]
[1755190408210,0.14972,117970.0,117960.0,0.28087409]
[1755190408700,0.007,117970.0,117960.0,0.28087409]
[1755190408814,0.14968,117970.0,117960.0,0.34018984]
[1755190409843,0.14968,117970.0,117960.0,0.28087409]
[1755190413366,0.31921462,117970.0,117960.0,0.28087409]
[1755190414604,0.31921462,117970.0,117960.0,0.27579409]
[1755190415375,0.60533787,117970.0,117960.0,0.1062451]
[1755190415577,0.46265787,117970.0,117960.0,0.1062451]
[1755190415770,0.60525787,117970.0,117960.0,0.1062451]
[1755190416153,0.46265787,117970.0,117960.0,0.27579409]
[1755190416352,0.59925787,117970.0,117960.0,0.1113251]
[1755190416552,0.16954899,117960.0,117950.0,0.16956041]
[1755190416848,0.16954899,117960.0,117950.0,0.17474041]
[1755190417071,0.16954899,117960.0,117950.0,0.00318]
[1755190417374,0.16956337,117950.0,117940.0,0.18123663]
[1755190417578,0.31212337,117950.0,117940.0,0.18323663]
[1755190418343,0.14256,117950.0,117940.0,0.18323663]
[1755190418757,0.17254899,117960.0,117950.0,0.16956337]
[1755190418955,0.25527224,117960.0,117950.0,0.17474337]
[1755190419151,0.39783224,117960.0,117950.0,0.17474337]
[1755190419367,0.25327224,117960.0,117950.0,0.17474337]
[1755190419590,0.14356,117960.0,117950.0,0.17474337]
[1755190419787,0.31210899,117960.0,117950.0,0.17474337]
[1755190420332,0.38141135,117970.0,117960.0,0.16954899]
[1755190420467,0.4641346,117970.0,117960.0,0.17154899]
[1755190420674,0.51545462,117970.0,117960.0,0.17472899]
[1755190420895,0.34592,117970.0,117960.0,0.17472899]
[1755190421265,0.2034,117970.0,117960.0,0.17472899]
[1755190421490,0.34592,117970.0,117960.0,0.83240622]
[1755190421918,0.34592,117970.0,117960.0,0.17472899]
[1755190422381,0.34792,117970.0,117960.0,0.17472899]
[1755190422728,0.34992,117970.0,117960.0,0.17472899]
[1755190423110,0.51945462,117970.0,117960.0,0.17472899]
[1755190423315,0.51945462,117970.0,117960.0,0.16954899]
[1755190423520,0.51945462,117970.0,117950.0,0.17274337]
[1755190423823,0.51945462,117970.0,117960.0,0.16954899]
[1755190424225,0.51945462,117970.0,117950.0,0.17274337]
[1755190424403,0.37493462,117970.0,117960.0,0.17472899]
[1755190424633,0.16954899,117960.0,117940.0,0.33296293]
[1755190424840,0.31204337,117950.0,117940.0,0.33296293]
[1755190425055,0.31204337,117950.0,117940.0,0.00318]
[1755190425259,0.31204337,117950.0,117930.0,0.18174364]
[1755190425471,0.31204337,117950.0,117940.0,0.16957775]
[1755190426041,0.31204337,117950.0,117940.0,0.17275775]
[1755190426263,0.14248,117950.0,117940.0,0.17475775]
[1755190426619,0.31378365,117950.0,117940.0,0.21008989]
[1755190426827,0.31204337,117950.0,117940.0,0.21008989]
[1755190427455,0.31204337,117950.0,117940.0,0.17475775]
[1755190427884,0.31204337,117950.0,117940.0,0.17275775]
[1755190428065,0.31304337,117950.0,117940.0,0.17275775]
[1755190428772,0.14348,117950.0,117940.0,0.17475775]
[1755190428977,0.14518028,117950.0,117940.0,0.17475775]
[1755190429191,0.14518028,117950.0,117940.0,0.21018989]
[1755190429392,0.00274028,117950.0,117940.0,0.21118989]
[1755190429600,0.14518028,117950.0,117940.0,0.21118989]
[1755190429744,0.00274028,117950.0,117940.0,0.17575775]
[1755190429951,0.14518028,117950.0,117940.0,0.17575775]
[1755190432018,0.001,117950.0,117940.0,0.17575775]
[1755190432442,0.001,117950.0,117940.0,0.93983]
[1755190432615,0.1434,117950.0,117940.0,0.93983]
[1755190432820,0.1434,117950.0,117940.0,1.02231443]
[1755190433001,0.2034,117970.0,117960.0,0.16954899]
[1755190433208,0.2034,117970.0,117960.0,0.83240622]
[1755190433418,0.3458,117970.0,117960.0,0.83240622]
[1755190433608,0.3458,117970.0,117960.0,0.93880124]
[1755190433808,0.3458,117970.0,117960.0,0.36360844]
[1755190434173,0.3458,117970.0,117960.0,0.28112401]
[1755190434395,0.3468,117970.0,117960.0,0.28112401]
[1755190437493,0.34676,117970.0,117960.0,0.28112401]
[1755190439687,0.34676,117970.0,117960.0,0.17472899]
[1755190439927,0.34676,117970.0,117960.0,0.1990905]
[1755190440078,0.2044,117970.0,117960.0,0.93925216]
[1755190440281,0.34672,117970.0,117960.0,0.91489065]
[1755190440449,0.19793561,117970.0,117960.0,0.99082401]
[1755190441023,0.19793561,117970.0,117960.0,1.01500706]
[1755190441211,0.19693561,117970.0,117960.0,1.01500706]
[1755190442034,0.19693561,117970.0,117960.0,0.99082401]
[1755190442429,0.19693561,117970.0,117960.0,1.01488808]
[1755190442825,0.19693561,117970.0,117960.0,0.99082401]
[1755190443031,0.19693561,117970.0,117960.0,0.90833958]
[1755190443587,0.19693561,117970.0,117960.0,0.25066235]
[1755190444721,0.19693561,117970.0,117960.0,0.17472899]
[1755190445864,0.05461561,117970.0,117960.0,0.17472899]
[1755190446087,0.19681561,117970.0,117960.0,0.2506347]
[1755190446480,0.19681561,117970.0,117960.0,0.90831193]
[1755190447019,0.19681561,117970.0,117960.0,0.94779929]
[1755190447454,0.05461561,117970.0,117960.0,0.94779929]
[1755190447661,0.19681561,117970.0,117960.0,0.21421635]
[1755190447803,0.19681561,117970.0,117960.0,0.87189358]
[1755190447989,0.19681561,117970.0,117960.0,0.83240622]
[1755190451311,0.05461561,117970.0,117960.0,0.83240622]
[1755190451456,0.19677561,117970.0,117960.0,0.83240622]
[1755190452884,0.19677561,117970.0,117960.0,0.17472899]
[1755190453085,0.19677561,117970.0,117960.0,0.83240622]
[1755190453226,0.19677561,117970.0,117960.0,0.84812094]
[1755190454130,0.05461561,117970.0,117960.0,0.84812094]
[1755190454320,0.19673561,117970.0,117960.0,0.84812094]
[1755190454916,0.05461561,117970.0,117960.0,0.93084419]
[1755190455311,0.19669561,117970.0,117960.0,1.27084419]
[1755190455542,0.19669561,117970.0,117960.0,0.61316696]
[1755190455715,0.19669561,117970.0,117960.0,1.27084419]
[1755190456385,0.18676548,117970.0,117960.0,1.27084419]
[1755190456786,0.18676548,117970.0,117960.0,1.72960218]
[1755190457514,0.06510881,117970.0,117960.0,1.72960218]
[1755190457679,0.06510881,117970.0,117960.0,1.73160218]
[1755190457880,0.06510881,117970.0,117960.0,1.75704018]
[1755190458303,0.06510881,117970.0,117960.0,1.86324852]
[1755190458743,0.06510881,117970.0,117960.0,1.75704018]
[1755190458928,0.06510881,117970.0,117960.0,0.64060496]
[1755190459137,0.06510881,117970.0,117960.0,1.75704018]
[1755190459309,0.06510881,117970.0,117960.0,1.75904018]
[1755190460236,0.06510881,117970.0,117960.0,1.86524852]
[1755190460610,0.06510881,117970.0,117960.0,0.7488133]
[1755190460766,0.06510881,117970.0,117960.0,1.86524852]
[1755190461988,0.20336,117980.0,117970.0,0.16953462]
[1755190462148,0.34536,117980.0,117970.0,1.23798991]
[1755190463186,0.34536,117980.0,117970.0,0.68126421]
[1755190463390,0.34536,117980.0,117970.0,1.24048182]
[1755190464523,0.20336,117980.0,117970.0,1.24048182]
[1755190464727,0.34528,117980.0,117970.0,1.24048182]
[1755190465159,0.34528,117980.0,117970.0,1.34669016]
[1755190465361,0.20336,117980.0,117970.0,1.34669016]
[1755190465564,0.34528,117980.0,117970.0,1.34669016]
[1755190467604,0.33535149,117980.0,117970.0,1.24048182]
[1755190467818,0.33535149,117980.0,117970.0,0.68226421]
[1755190468010,0.33535149,117980.0,117970.0,1.23978182]
[1755190468679,0.19343149,117980.0,117970.0,1.28266584]
[1755190468903,0.33531149,117980.0,117970.0,1.28266584]
[1755190469103,0.3,118000.0,117990.0,0.16950589]
[1755190469436,0.44188,118000.0,117990.0,0.84937808]
[1755190471066,0.44188,118000.0,117990.0,0.84732808]
[1755190472750,0.44188,118000.0,117990.0,0.76162483]
[1755190473007,0.44188,118000.0,117990.0,0.7277235]
[1755190474754,0.44188,118000.0,117990.0,0.7307035]
[1755190474966,0.44188,118000.0,117990.0,0.7327535]
[1755190476361,0.3,118000.0,117990.0,0.7327535]
[1755190476633,0.44176,118000.0,117990.0,0.81547675]
[1755190476808,0.44176,118000.0,117990.0,0.89796118]
[1755190477008,0.44176,118000.0,117990.0,0.92339418]
[1755190477734,0.69397477,118000.0,117970.0,0.08297634]
[1755190477934,0.23890861,117990.0,117970.0,0.00049191]
[1755190478104,0.3939635,117980.0,117970.0,0.00049191]
[1755190478356,0.4402035,117980.0,117970.0,0.00049191]
[1755190478683,0.23716833,117990.0,117970.0,0.17002653]
[1755190478893,0.23716833,117990.0,117970.0,0.17102653]
[1755190479096,0.14168,117980.0,117970.0,0.17102653]
[1755190479496,0.23716833,117990.0,117980.0,0.16952025]
[1755190479729,0.37884833,117990.0,117980.0,0.16952025]
[1755190480055,0.14368,117990.0,117980.0,0.16952025]
[1755190480456,0.3,118000.0,117990.0,0.16950589]
[1755190480656,0.44168,118000.0,117990.0,0.16950589]
[1755190481399,0.61117152,118000.0,117990.0,0.16950589]
[1755190481625,0.16950589,117990.0,117980.0,0.10621263]
[1755190482031,0.16952025,117980.0,117970.0,0.10670454]
[1755190482230,0.3938835,117980.0,117970.0,0.10670454]
[1755190482453,0.4401235,117980.0,117970.0,0.10670454]
[1755190482733,0.4644496,117980.0,117970.0,0.10670454]
[1755190482908,1.13647729,117980.0,117970.0,0.00049191]
[1755190483391,0.50734562,117980.0,117970.0,0.00049191]
[1755190483615,1.16392429,117980.0,117970.0,0.00049191]
[1755190483975,1.14647527,117980.0,117970.0,0.00049191]
[1755190484418,1.48647527,117980.0,117970.0,0.00049191]
[1755190484632,1.50392429,117980.0,117970.0,0.00049191]
[1755190485262,1.50692429,117980.0,117970.0,0.00049191]
[1755190485604,1.50492429,117980.0,117970.0,0.00049191]
[1755190486132,1.50992429,117980.0,117970.0,0.00049191]
[1755190486542,0.8378566,117980.0,117970.0,0.00049191]
[1755190486774,0.4516166,117980.0,117970.0,0.00049191]
[1755190487319,0.4516166,117980.0,117970.0,0.17002653]
[1755190487521,0.4018435,117980.0,117970.0,0.17002653]
[1755190487956,0.23232325,117980.0,117970.0,0.17002653]
[1755190488172,0.3968435,117980.0,117970.0,0.17002653]
[1755190488561,0.3978435,117980.0,117970.0,0.17002653]
[1755190488974,0.3998435,117980.0,117970.0,0.17002653]
[1755190489588,0.1476,117980.0,117970.0,0.17305653]
[1755190489787,0.1476,117980.0,117970.0,0.17513653]
[1755190490235,0.006,117980.0,117970.0,0.17513653]
[1755190490426,0.1476,117980.0,117970.0,0.28128907]
[1755190491455,0.31712025,117980.0,117970.0,0.28128907]
[1755190491574,0.31712025,117980.0,117970.0,0.27617907]
[1755190491780,0.1476,117980.0,117970.0,0.28128907]
[1755190492130,0.31712025,117980.0,117970.0,0.28128907]
[1755190492369,0.1476,117980.0,117970.0,0.28128907]
[1755190492694,0.1456,117980.0,117970.0,0.28128907]
[1755190492933,0.31512025,117980.0,117970.0,0.28128907]
[1755190493133,0.31612025,117980.0,117970.0,0.28128907]
[1755190493339,0.1466,117980.0,117970.0,0.28128907]
[1755190493711,0.1426,117980.0,117970.0,0.28128907]
[1755190494105,0.1456,117980.0,117970.0,0.28128907]
[1755190495291,0.14556,117980.0,117970.0,0.28128907]
[1755190495626,0.14552,117980.0,117970.0,0.28128907]
[1755190496236,0.34888,117980.0,117970.0,0.28128907]
[1755190497199,0.51840025,117980.0,117970.0,0.28128907]
[1755190498081,0.34888,117980.0,117970.0,0.28128907]
[1755190498742,0.51840025,117980.0,117970.0,0.28128907]
[1755190499566,0.51840025,117980.0,117970.0,0.27920907]
[1755190499734,0.51840025,117980.0,117970.0,0.27617907]
[1755190500322,0.51840025,117980.0,117970.0,0.10664445]
[1755190500498,0.60648126,117980.0,117970.0,0.10664445]
[1755190500704,0.6011235,117980.0,117970.0,0.10664445]
[1755190501024,0.6011235,117980.0,117970.0,0.00049191]
[1755190503502,1.28114917,117980.0,117970.0,0.00049191]
[1755190503703,0.6265705,117980.0,117970.0,0.00049191]
[1755190504326,1.63859819,117980.0,117970.0,0.00049191]
[1755190504514,1.68483819,117980.0,117970.0,0.00049191]
[1755190504960,1.70068271,117980.0,117970.0,0.00049191]
[1755190505133,1.68483819,117980.0,117970.0,0.00049191]
[1755190505336,1.68383819,117980.0,117970.0,0.00049191]
[1755190505562,1.68483819,117980.0,117970.0,0.00049191]
[1755190505783,1.79055819,117980.0,117970.0,0.00049191]
[1755190505929,1.80639818,117980.0,117970.0,0.00049191]
[1755190506128,1.80339818,117980.0,117970.0,1e-08]
[1755190506334,1.85339818,117980.0,117970.0,1e-08]
[1755190506578,1.85739818,117980.0,117970.0,1e-08]
[1755190506779,2.05739818,117980.0,117970.0,1e-08]
[1755190506939,2.05639818,117980.0,117970.0,1e-08]
[1755190507412,2.05439818,117980.0,117970.0,1e-08]
[1755190507581,0.16960651,117920.0,117910.0,0.00307]
[1755190507891,0.59604976,117920.0,117910.0,0.10948844]
[1755190508109,0.59604976,117920.0,117910.0,0.00307]
[1755190508954,0.5960989,117920.0,117910.0,0.00503]
[1755190509157,0.5960989,117920.0,117910.0,0.00603]
[1755190509373,0.5950989,117920.0,117910.0,0.00603]
[1755190510065,0.5960989,117920.0,117910.0,0.00407]
[1755190511054,0.5960989,117920.0,117910.0,0.001]
[1755190511863,1.25067757,117920.0,117910.0,0.001]
[1755190512215,1.27143176,117920.0,117910.0,0.001]
[1755190512393,1.29689076,117920.0,117910.0,0.001]
[1755190512585,1.33433402,117920.0,117910.0,0.001]
[1755190512768,1.35178304,117920.0,117910.0,0.001]
[1755190512998,1.73651304,117920.0,117910.0,0.001]
[1755190516416,0.16964967,117890.0,117880.0,0.00307]
[1755190516644,0.16969285,117860.0,117850.0,0.69574114]
[1755190516850,0.31097285,117860.0,117850.0,0.54597484]
[1755190517055,0.31097285,117860.0,117850.0,0.26303704]
[1755190517261,0.31097285,117860.0,117850.0,0.18362261]
[1755190517930,0.30797285,117860.0,117850.0,0.01406296]
[1755190518125,0.30797285,117860.0,117850.0,0.17528485]
[1755190518324,0.14128,117860.0,117850.0,0.17528485]
[1755190518528,0.31097285,117860.0,117850.0,0.0055776]
[1755190518695,0.30897285,117860.0,117850.0,0.18128485]
[1755190518900,0.30897285,117860.0,117850.0,0.21901472]
[1755190518901,0.13928,117860.0,117850.0,0.21901472]
[1755190519313,0.14028,117860.0,117850.0,0.18728485]
[1755190519516,0.30897285,117860.0,117850.0,0.18128485]
[1755190519708,0.13928,117860.0,117850.0,0.18128485]
[1755190520001,0.30797285,117860.0,117850.0,0.17528485]
[1755190520175,0.30897285,117860.0,117850.0,0.17828485]
[1755190520352,0.13928,117860.0,117850.0,0.18028485]
[1755190520933,0.34276,117860.0,117850.0,0.18028485]
[1755190521495,0.20448,117860.0,117850.0,0.83486352]
[1755190521652,0.20448,117860.0,117850.0,0.87249339]
[1755190521653,0.34572,117860.0,117850.0,0.87249339]
[1755190522007,0.34572,117860.0,117850.0,0.83486352]
[1755190522495,0.34472,117860.0,117850.0,0.83186352]
[1755190523040,0.34572,117860.0,117850.0,0.83286352]
[1755190523219,0.34572,117860.0,117850.0,0.17828485]
[1755190523418,0.34572,117860.0,117850.0,0.17928485]
[1755190525474,0.20448,117860.0,117850.0,0.17928485]
[1755190525692,0.34468,117860.0,117850.0,0.83086352]
[1755190525919,0.34468,117860.0,117850.0,0.82986352]
[1755190526123,0.34668,117860.0,117850.0,0.17628485]
[1755190526418,0.34668,117860.0,117850.0,0.83186352]
[1755190526833,0.34668,117860.0,117850.0,0.17628485]
[1755190529535,0.34668,117860.0,117850.0,0.32801115]
[1755190530738,0.51637285,117860.0,117850.0,0.1583039]
[1755190530911,0.5990961,117860.0,117850.0,0.1532739]
[1755190531424,0.5990961,117860.0,117850.0,0.0015476]
[1755190531656,0.5990961,117860.0,117850.0,0.0065776]
[1755190531900,0.5970961,117860.0,117850.0,0.0055776]
[1755190532360,0.61489815,117860.0,117850.0,0.0036176]
[1755190532577,0.61489815,117860.0,117850.0,0.0005476]
[1755190533182,0.61589815,117860.0,117850.0,0.0005476]
[1755190533570,0.61591738,117860.0,117850.0,0.0005476]
[1755190535086,0.6000961,117860.0,117850.0,0.0005476]
[1755190535288,0.61593775,117860.0,117850.0,0.0005476]
[1755190536323,0.61493775,117860.0,117850.0,0.0005476]
[1755190536535,0.61693775,117860.0,117850.0,0.0005476]
[1755190536713,0.47573775,117860.0,117850.0,0.0056476]
[1755190536917,0.61681775,117860.0,117850.0,0.0056476]
[1755190538337,0.61481775,117860.0,117850.0,0.17535485]
[1755190538561,0.61681775,117860.0,117850.0,0.0066476]
[1755190538765,0.61681775,117860.0,117850.0,0.0015476]
[1755190539667,0.6168338,117860.0,117850.0,0.0015476]
[1755190541023,0.2233377,117860.0,117850.0,0.83093352]
[1755190541228,0.34852,117860.0,117850.0,0.83093352]
[1755190541406,0.36438597,117860.0,117850.0,0.83093352]
[1755190541643,0.36438597,117860.0,117850.0,0.85004489]
[1755190541854,0.36438597,117860.0,117850.0,0.17635485]
[1755190542062,0.36438597,117860.0,117850.0,0.32856988]
[1755190542469,0.36238597,117860.0,117850.0,0.32756988]
[1755190542755,0.36138597,117860.0,117850.0,0.33156988]
[1755190543230,0.36138597,117860.0,117850.0,0.33356988]
[1755190543634,0.36138597,117860.0,117850.0,0.18135485]
[1755190544172,0.53107882,117860.0,117850.0,0.18135485]
[1755190544439,0.53007882,117860.0,117850.0,0.17735485]
[1755190544828,0.53007882,117860.0,117850.0,0.18035485]
[1755190544829,0.36138597,117860.0,117850.0,0.18035485]
[1755190545150,0.21934597,117860.0,117850.0,0.17735485]
[1755190545319,0.36034597,117860.0,117850.0,0.17835485]
[1755190545522,0.3603406,117860.0,117850.0,0.17835485]
[1755190545720,0.3603406,117860.0,117850.0,0.17635485]
[1755190546450,0.53003345,117860.0,117850.0,0.17635485]
[1755190546582,0.3603406,117860.0,117850.0,0.17635485]
[1755190546795,0.3603406,117860.0,117850.0,0.17735485]
[1755190547440,0.53002945,117860.0,117850.0,0.17735485]
[1755190548095,0.53002945,117860.0,117850.0,0.0076476]
[1755190548378,0.53002945,117860.0,117850.0,0.0025476]
[1755190548524,0.6127527,117860.0,117850.0,0.0025476]
[1755190549948,0.6127527,117860.0,117850.0,0.0015476]
[1755190550183,0.6127527,117860.0,117850.0,0.0005476]
[1755190550676,0.6137527,117860.0,117850.0,0.0005476]
[1755190553078,0.6137527,117860.0,117850.0,0.17025485]
[1755190553292,0.6136727,117860.0,117850.0,0.0056476]
[1755190553740,0.6136727,117860.0,117850.0,0.17535485]
[1755190553960,0.30305985,117860.0,117850.0,0.17535485]
[1755190554185,0.3612166,117860.0,117850.0,0.91265677]
[1755190554375,0.34536,117860.0,117850.0,0.9951412]
[1755190556081,0.34536,117860.0,117850.0,1.0130912]
[1755190556271,0.34536,117860.0,117850.0,0.9961412]
[1755190556473,0.34536,117860.0,117850.0,0.9951412]
[1755190556874,0.20348,117860.0,117850.0,1.3351412]
[1755190557112,0.34432,117860.0,117850.0,1.48735623]
[1755190557267,0.34532,117860.0,117850.0,1.49135623]
[1755190557465,0.34432,117860.0,117850.0,1.48935623]
[1755190557957,0.34532,117860.0,117850.0,1.49235623]
[1755190560305,0.20448,117860.0,117850.0,1.49235623]
[1755190560517,0.34528,117860.0,117850.0,1.55597525]
[1755190560969,0.1440486,117860.0,117850.0,1.66238931]
[1755190561174,0.1440486,117860.0,117850.0,1.51017428]
[1755190562291,0.1440486,117860.0,117850.0,1.35759022]
[1755190562507,0.1430486,117860.0,117850.0,1.35259022]
[1755190562940,0.1430486,117860.0,117850.0,1.35659022]
[1755190563417,0.1430486,117860.0,117850.0,1.35459022]
[1755190563674,0.1430486,117860.0,117850.0,1.35659022]
[1755190564104,0.1430486,117860.0,117850.0,0.68456253]
[1755190564320,0.1430486,117860.0,117850.0,1.3391412]